bitfinex/quotes_ETHUSD_20260226
["timestamp","ask_amount","ask_price","bid_price","bid_amount"]
[1772117443501,1.482,2046.5,2045.2,1.03107088]
[1772117444369,2.70360011,2046.5,2045.4,1.03107088]
[1772117444635,1.482,2047.1,2045.5,0.18685624]
[1772117444848,1.482,2047.1,2045.8,1.03107088]
[1772117445402,1.483,2047.5,2046.4,1.03107088]
[1772117446227,1.22106085,2047.4,2046.4,2.25269379]
[1772117446448,1.22106085,2047.4,2046.4,1.03107088]
[1772117446608,1.22106085,2047.4,2045.9,1.03107088]
[1772117447247,1.22106085,2047.4,2046.2,1.03107088]
[1772117448038,2.70204364,2047.5,2046.2,1.03107088]
[1772117448260,2.70204364,2047.5,2046.2,2.25280125]
[1772117448640,2.70204364,2047.5,2046.3,1.03107088]
[1772117448957,1.481,2047.4,2046.3,1.03107088]
[1772117449653,0.001,2047.8,2046.3,1.03107088]
[1772117449852,1.479,2047.7,2046.3,1.03107088]
[1772117450358,1.479,2047.7,2046.6,1.50546445]
[1772117450552,2.69989386,2047.7,2046.7,1.0066328]
[1772117450751,2.69989152,2047.7,2046.7,1.0066328]
[1772117451454,0.001,2047.3,2046.7,1.0066328]
[1772117451880,0.001,2047.3,2046.3,1.2216712]
[1772117452161,0.001,2047.3,2046.3,1.04596627]
[1772117452454,1.2212398,2047.1,2046.4,1.04596627]
[1772117452659,1.2212208,2047.2,2046.4,1.04596627]
[1772117453166,1.2212208,2047.2,2046.1,1.22183666]
[1772117453327,1.2212208,2047.2,2046.0,1.04706627]
[1772117453533,1.2212208,2047.2,2046.0,0.0011]
[1772117453534,2.72668525,2047.2,2046.0,0.0011]
[1772117453861,1.2212208,2047.2,2046.0,0.0011]
[1772117454064,1.50546445,2046.9,2045.8,0.0011]
[1772117454261,1.475,2046.8,2045.8,0.0011]
[1772117454462,1.22147847,2046.7,2045.8,0.0011]
[1772117454838,1.22147847,2046.7,2045.5,0.0011]
[1772117455035,1.50546445,2046.4,2045.5,0.0011]
[1772117455257,0.94086975,2046.6,2045.5,0.0011]
[1772117455458,1.474,2046.3,2045.5,0.0011]
[1772117455764,0.94086975,2046.6,2045.5,0.0011]
[1772117455963,2.72694292,2046.7,2045.5,0.0011]
[1772117455964,1.473,2046.5,2045.5,0.0011]
[1772117456538,1.22165754,2046.4,2045.5,0.0011]
[1772117457358,2.72712199,2046.4,2045.5,0.0011]
[1772117458068,1.22165754,2046.4,2044.7,1.07630424]
[1772117458561,1.22165754,2046.4,2044.8,1.22261345]
[1772117458766,1.50546445,2046.3,2044.8,2.29891769]
[1772117458963,1.50546445,2046.0,2044.8,1.07630424]
[1772117459167,4.08073493,2045.9,2044.3,1.07630424]
[1772117459394,1.50546445,2045.7,2044.3,1.07630424]
[1772117460049,1.50546445,2045.4,2043.9,2.29943359]
[1772117460256,1.467,2045.3,2043.9,2.29943359]
[1772117460786,1.22249388,2045.0,2043.9,2.29944631]
[1772117460940,1.22249388,2045.0,2043.5,1.07630424]
[1772117461342,1.22247702,2045.1,2043.5,1.07630424]
[1772117461837,3.64893009,2045.1,2043.5,1.07630424]
[1772117462238,1.50546445,2045.4,2043.5,1.07630424]
[1772117462474,1.465,2045.3,2044.1,1.07630424]
[1772117462649,2.61173493,2045.9,2044.2,1.2229261]
[1772117462650,1.465,2045.4,2044.2,1.2229261]
[1772117462850,2.68726569,2045.4,2044.2,1.07630424]
[1772117463943,2.68726569,2045.4,2044.2,2.29927456]
[1772117464144,2.68726569,2045.4,2043.7,1.07630424]
[1772117464145,1.50546445,2045.2,2043.7,1.07630424]
[1772117464345,2.68726569,2045.4,2043.1,6.39990394]
[1772117464346,1.50546445,2044.9,2043.2,1.07630424]
[1772117464577,2.68726569,2045.4,2044.2,0.0011]
[1772117464786,1.465,2045.3,2044.2,0.0011]
[1772117465173,1.50546445,2045.2,2044.2,0.0011]
[1772117465681,1.50546445,2044.9,2044.2,0.0011]
[1772117466182,0.99614945,2044.5,2042.7,0.0011]
[1772117466383,1.465,2045.3,2042.8,1.07630424]
[1772117466384,1.465,2044.4,2042.8,1.07630424]
[1772117466547,1.465,2044.3,2042.9,1.07630424]
[1772117466745,1.465,2044.3,2043.1,1.07630424]
[1772117466746,2.68792591,2044.3,2043.1,1.07630424]
[1772117467184,4.19339036,2044.3,2043.1,1.07630424]
[1772117467481,4.19339036,2044.3,2042.7,2.30123719]
[1772117467674,1.464,2044.2,2042.8,1.07630424]
[1772117468853,1.22303214,2044.1,2042.8,2.30010065]
[1772117470169,1.22303214,2044.1,2042.9,1.07630424]
[1772117470558,1.50546445,2044.0,2042.7,0.0011]
[1772117470785,1.22321166,2043.8,2042.7,0.0011]
[1772117471295,1.462,2043.7,2042.7,1.07740424]
[1772117471465,6.95997469,2044.5,2042.9,1.07630424]
[1772117471665,1.462,2044.4,2043.2,1.07630424]
[1772117472666,1.462,2044.4,2043.3,1.22351098]
[1772117472872,2.68485388,2044.4,2043.4,1.07630424]
[1772117473479,2.68485388,2044.4,2042.9,1.07630424]
[1772117473794,2.68485388,2044.4,2043.2,1.07630424]
[1772117473795,1.462,2044.3,2043.2,1.07630424]
[1772117474800,4.89046911,2044.8,2043.4,1.50546445]
[1772117474801,1.22261345,2044.8,2043.4,1.50546445]
[1772117474984,1.462,2044.8,2043.8,1.07630424]
[1772117476798,1.22267325,2044.7,2043.8,1.07630424]
[1772117476987,1.22267325,2044.7,2043.5,1.22334307]
[1772117477190,1.22267325,2044.7,2043.4,2.3008441]
[1772117477563,1.50546445,2044.5,2043.4,0.0011]
[1772117477767,2.5016139,2044.5,2043.4,0.0011]
[1772117477968,0.99614945,2044.5,2043.4,0.0011]
[1772117478497,0.99614945,2044.5,2043.2,0.0011]
[1772117478498,1.50546445,2044.3,2043.2,0.0011]
[1772117478799,1.22303214,2044.1,2043.2,1.22466078]
[1772117479304,1.22303214,2044.1,2043.2,1.22466967]
[1772117479593,1.22303214,2044.1,2043.2,0.0011]
[1772117480476,1.22303214,2044.1,2043.2,1.22466157]
[1772117480873,1.22303214,2044.1,2043.2,0.0011]
[1772117481073,4.89045383,2045.0,2043.2,1.07740424]
[1772117481274,1.50546445,2044.8,2043.3,1.07630424]
[1772117481478,6.66346445,2044.8,2043.3,1.07630424]
[1772117481681,6.66346445,2044.5,2043.2,0.0011]
[1772117481933,5.158,2044.5,2043.2,0.0011]
[1772117482098,2.5016139,2044.8,2043.2,1.07740424]
[1772117482270,1.46,2044.7,2043.4,1.07630424]
[1772117483006,1.46,2044.7,2043.6,1.07630424]
[1772117483190,1.46,2044.7,2043.2,0.0011]
[1772117483191,1.50546445,2043.9,2043.2,0.0011]
[1772117483509,1.459,2043.8,2043.2,0.0011]
[1772117484466,1.459,2043.8,2042.9,0.0011]
[1772117484663,1.459,2043.8,2042.7,0.0011]
[1772117484664,1.50546445,2043.3,2042.7,0.0011]
[1772117484863,1.458,2043.5,2042.7,0.0011]
[1772117485067,1.458,2043.5,2042.7,1.07740424]
[1772117485470,1.458,2044.0,2042.7,1.07740424]
[1772117485687,4.89141068,2044.7,2043.2,1.07630424]
[1772117485688,1.458,2044.7,2043.2,1.07630424]
[1772117486688,1.22247841,2045.1,2043.7,1.02012205]
[1772117486891,0.001,2045.2,2043.9,1.02012205]
[1772117487087,0.001,2045.2,2043.8,1.22321166]
[1772117487088,0.001,2045.2,2044.1,1.50546445]
[1772117487287,6.39290678,2046.1,2044.6,1.02012205]
[1772117488223,4.88727005,2046.2,2044.8,1.02012205]
[1772117489094,4.88727005,2046.2,2044.9,1.22255367]
[1772117489291,1.50546445,2045.9,2044.4,1.22280983]
[1772117489499,0.001,2044.8,2044.5,1.02012205]
[1772117489693,1.456,2045.6,2044.3,1.2228843]
[1772117489923,1.456,2045.6,2044.3,2.24300635]
[1772117490301,2.96146445,2045.6,2044.3,1.02012205]
[1772117490707,1.50546445,2045.3,2043.9,1.22310407]
[1772117490923,1.456,2045.6,2044.0,1.02012205]
[1772117491223,1.456,2045.6,2044.1,1.02012205]
[1772117491224,1.22219506,2045.5,2044.1,1.02012205]
[1772117491527,1.50546445,2045.4,2043.7,1.02012205]
[1772117491822,1.50546445,2045.4,2043.3,7.51433287]
[1772117491823,1.50546445,2044.8,2043.4,1.22453747]
[1772117491997,1.455,2044.7,2043.4,1.02122205]
[1772117492626,1.50546445,2044.5,2043.4,0.0011]
[1772117492923,1.455,2044.7,2043.4,0.0011]
[1772117492924,1.50546445,2044.2,2043.4,0.0011]
[1772117493230,1.22303214,2044.1,2043.4,0.0011]
[1772117493448,1.454,2044.0,2043.4,0.0011]
[1772117495129,1.22315181,2043.9,2043.4,0.0011]
[1772117495338,1.22315181,2043.9,2043.2,0.0011]
[1772117495909,2.72861626,2043.9,2043.2,0.0011]
[1772117496114,2.72861626,2043.9,2042.9,0.0011]
[1772117496432,1.50546445,2043.6,2042.9,0.0011]
[1772117496898,1.22315181,2043.9,2042.9,0.0011]
[1772117497802,1.455,2043.8,2042.9,0.0011]
[1772117498239,1.455,2043.8,2042.9,0.99205761]
[1772117498405,1.454,2044.4,2042.9,0.99205761]
[1772117499036,1.22291248,2044.3,2042.9,2.21578393]
[1772117499202,1.50546445,2044.1,2042.9,0.99205761]
[1772117500033,1.22291248,2044.3,2043.0,0.99095761]
[1772117501114,1.22291248,2044.3,2043.2,0.99095761]
[1772117502412,1.22377853,2044.6,2043.3,0.99095761]
[1772117502617,0.001,2044.6,2043.6,0.99095761]
[1772117502933,1.454,2044.8,2043.6,0.99095761]
[1772117503235,1.22240892,2045.2,2043.8,0.99095761]
[1772117503411,1.454,2045.3,2044.1,0.99095761]
[1772117503611,2.67632231,2045.3,2044.3,0.99095761]
[1772117504110,2.67632231,2045.3,2043.7,2.72873596]
[1772117504111,1.50546445,2045.1,2043.8,0.99095761]
[1772117504520,1.50546445,2044.8,2043.3,0.99095761]
[1772117504713,1.453,2044.7,2043.3,0.99095761]
[1772117505250,1.22273305,2044.6,2043.3,2.21444278]
[1772117505404,1.22273305,2044.6,2043.4,0.99095761]
[1772117506315,7.00194466,2046.0,2043.5,1.17781385]
[1772117506508,2.67507557,2045.7,2043.9,0.99095761]
[1772117506702,2.67507557,2045.7,2044.0,0.99095761]
[1772117506907,2.67507557,2045.7,2044.2,0.99095761]
[1772117507535,2.67507557,2045.7,2044.4,0.99095761]
[1772117507713,2.11434734,2045.6,2044.4,0.99095761]
[1772117507914,1.22207557,2045.7,2044.4,0.99095761]
[1772117508432,1.22189638,2046.0,2044.4,0.99095761]
[1772117509520,1.22189638,2046.0,2044.6,0.99095761]
[1772117511543,2.26621224,2046.0,2044.6,0.99095761]
[1772117511746,2.26621224,2046.0,2044.2,3.32089104]
[1772117511747,2.11434734,2045.8,2044.2,3.32089104]
[1772117511988,2.11434734,2045.4,2043.9,1.22311504]
[1772117512119,1.451,2045.3,2043.7,2.21420107]
[1772117512515,2.49313005,2045.3,2043.7,0.99095761]
[1772117512823,2.49313005,2045.3,2043.8,0.99095761]
[1772117513417,1.04213005,2045.2,2044.1,0.0011]
[1772117513634,2.11434734,2045.0,2044.1,0.0011]
[1772117513840,2.11434734,2045.0,2043.5,2.21432055]
[1772117514150,3.15320228,2045.0,2043.9,0.0011]
[1772117514516,1.03670919,2044.9,2043.9,0.0011]
[1772117515246,1.22243411,2045.1,2043.9,0.0011]
[1772117515550,4.88973644,2045.2,2043.9,0.0011]
[1772117515956,4.88973644,2045.2,2043.9,0.99205761]
[1772117516355,1.22237433,2045.2,2043.9,0.99205761]
[1772117516559,1.22235933,2045.3,2043.9,0.99205761]
[1772117517220,0.001,2045.5,2043.9,0.99205761]
[1772117517221,0.001,2045.5,2044.3,0.97846676]
[1772117517627,0.001,2045.5,2044.5,0.97846676]
[1772117519754,0.001,2045.5,2044.6,1.22273305]
[1772117520158,0.001,2045.5,2044.6,2.20119981]
[1772117520453,0.001,2045.5,2044.7,0.97846676]
[1772117520648,0.001,2045.5,2044.3,1.22291248]
[1772117520845,0.001,2045.5,2044.4,0.97846676]
[1772117521638,0.001,2045.5,2044.6,0.97846676]
[1772117523729,0.001,2045.5,2044.2,0.97846676]
[1772117523933,0.001,2045.5,2044.2,2.20143598]
[1772117524435,0.001,2045.5,2044.2,2.20143584]
[1772117524634,0.001,2045.5,2044.1,1.22298718]
[1772117524840,0.001,2045.5,2044.2,0.97846676]
[1772117525762,0.001,2045.5,2044.5,0.97846676]
[1772117527175,0.001,2045.3,2044.5,0.97846676]
[1772117527740,0.001,2045.3,2044.6,2.20119981]
[1772117528558,0.001,2045.5,2044.7,0.97846676]
[1772117528754,0.001,2045.5,2044.8,0.97846676]
[1772117528956,0.001,2045.5,2044.6,1.22273305]
[1772117529268,0.001,2045.5,2044.6,0.97846676]
[1772117529954,1.0173571,2045.2,2044.3,0.0011]
[1772117530267,1.441,2045.1,2044.3,0.0011]
[1772117530767,6.599,2045.1,2044.3,0.0011]
[1772117530975,1.441,2045.1,2044.3,0.0011]
[1772117531176,1.441,2045.1,2044.3,1.22401173]
[1772117531870,1.22249388,2045.0,2044.3,0.0011]
[1772117533140,4.88923965,2045.4,2044.3,0.0011]
[1772117533141,1.22225481,2045.4,2044.3,0.97956676]
[1772117533844,1.22319506,2045.5,2044.5,0.97846676]
[1772117534273,1.22319506,2045.5,2044.4,1.22285267]
[1772117534503,1.22319506,2045.5,2044.4,2.20131943]
[1772117534650,1.22319506,2045.5,2044.4,0.97846676]
[1772117534979,1.22319506,2045.5,2044.3,1.22400842]
[1772117535144,1.22319506,2045.5,2044.3,0.0011]
[1772117535542,1.22319506,2045.5,2044.3,2.2024666]
[1772117536077,1.22319506,2045.5,2044.3,0.97956676]
[1772117536579,1.442,2045.4,2044.3,2.20247477]
[1772117536875,1.442,2045.4,2044.4,0.97846676]
[1772117537449,1.442,2045.4,2044.3,0.0011]
[1772117537450,3.12981008,2045.2,2044.3,0.0011]
[1772117537864,1.22243411,2045.1,2044.3,0.0011]
[1772117538260,1.22243411,2045.1,2044.0,0.0011]
[1772117539181,3.12959916,2044.8,2043.9,0.0011]
[1772117539378,1.443,2044.7,2043.9,0.0011]
[1772117539873,1.22273305,2044.6,2043.9,0.0011]
[1772117540462,1.443,2044.7,2043.9,0.97956676]
[1772117540989,0.001,2045.5,2043.9,0.97956676]
[1772117540990,1.443,2045.1,2043.9,0.97956676]
[1772117541292,4.88913456,2045.4,2044.2,0.97956676]
[1772117541478,0.001,2045.5,2044.5,0.97846676]
[1772117541958,0.001,2045.5,2044.7,0.97846676]
[1772117542466,1.442,2045.4,2044.2,0.97956676]
[1772117542662,1.442,2045.4,2044.2,2.20250943]
[1772117542863,1.442,2045.4,2044.2,2.20252121]
[1772117543585,6.6,2045.4,2044.2,0.97956676]
[1772117543986,6.38031457,2045.3,2044.2,0.97956676]
[1772117544299,8.28750047,2045.1,2044.2,0.0011]
[1772117544780,6.38031457,2045.3,2044.2,0.0011]
[1772117545292,6.38031457,2045.3,2044.2,1.22406645]
[1772117545588,6.38031457,2045.3,2044.2,0.0011]
[1772117545759,1.22231457,2045.3,2044.2,0.0011]
[1772117546287,2.11434734,2045.1,2044.2,0.0011]
[1772117546603,1.22231457,2045.3,2044.2,0.96591944]
[1772117548063,1.22231457,2045.3,2044.4,0.96481944]
[1772117548689,3.33666191,2045.3,2044.2,0.0011]
[1772117548896,3.33666191,2045.3,2044.0,0.0011]
[1772117548897,0.99121053,2045.2,2044.0,0.0011]
[1772117549068,0.99121053,2045.2,2043.7,0.0011]
[1772117549069,2.11434734,2044.6,2043.7,0.0011]
[1772117549394,1.444,2044.5,2043.7,0.0011]
[1772117549561,8.26355787,2045.0,2043.7,0.0011]
[1772117549562,1.444,2044.4,2043.7,1.22436576]
[1772117549762,1.444,2044.4,2043.8,0.96481944]
[1772117549962,1.22291248,2044.3,2043.7,0.0011]
[1772117550992,3.10555787,2044.2,2042.9,0.0011]
[1772117551298,1.22291248,2044.3,2042.9,0.0011]
[1772117551299,1.22291248,2044.3,2043.2,0.0011]
[1772117551868,0.99121053,2044.1,2043.2,0.0011]
[1772117552091,1.22309197,2044.0,2043.2,0.0011]
[1772117552293,1.445,2043.9,2043.2,0.0011]
[1772117553463,1.4439,2043.9,2043.2,0.96481944]
[1772117553764,4.89094729,2044.6,2043.2,0.96481944]
[1772117553965,4.88969895,2045.3,2043.4,0.96481944]
[1772117553966,1.444,2044.5,2043.4,0.96481944]
[1772117554192,1.444,2044.7,2043.9,0.0011]
[1772117554689,1.444,2044.7,2043.9,0.96591944]
[1772117556184,1.22273305,2044.6,2043.9,0.96591944]
[1772117556397,1.22273305,2044.6,2043.9,2.18906745]
[1772117556576,2.66668427,2044.7,2044.0,0.96481944]
[1772117556976,2.66668427,2044.7,2043.9,0.0011]
[1772117557500,3.10555787,2044.6,2043.7,0.0011]
[1772117558072,1.22279285,2044.5,2043.7,0.0011]
[1772117558774,1.443,2044.4,2043.7,0.0011]
[1772117559097,0.99423871,2044.3,2043.7,0.0011]
[1772117559296,0.99423871,2044.3,2043.1,0.0011]
[1772117559799,2.06427158,2043.9,2043.1,0.0011]
[1772117559985,1.443,2043.8,2043.1,0.0011]
[1772117560209,1.443,2043.8,2042.9,0.0011]
[1772117560210,1.22327151,2043.7,2042.9,0.0011]
[1772117560367,1.22327151,2043.7,2042.7,0.96617358]
[1772117560572,2.66627151,2043.7,2042.7,0.96617358]
[1772117562013,1.443,2043.7,2042.7,0.96617358]
[1772117562217,1.443,2043.7,2042.9,0.96507358]
[1772117562425,1.442,2044.3,2042.9,0.96507358]
[1772117562831,1.442,2044.3,2043.1,0.96507358]
[1772117563125,0.001,2044.9,2043.1,0.96507358]
[1772117563299,1.22261345,2044.8,2043.3,0.96507358]
[1772117563842,4.3311995,2044.8,2043.3,0.96507358]
[1772117564114,1.22261345,2044.8,2043.3,0.96507358]
[1772117564317,1.22261345,2044.8,2043.4,2.18852469]
[1772117564486,1.22261345,2044.8,2043.5,0.96507358]
[1772117564912,2.21685216,2044.8,2043.4,1.22345111]
[1772117565110,0.99423871,2044.7,2043.2,1.22352586]
[1772117565480,2.21685216,2044.8,2043.3,0.96507358]
[1772117565682,0.99423871,2044.7,2043.2,1.22352586]
[1772117566325,1.22273305,2044.6,2043.1,0.96507358]
[1772117566613,1.22273305,2044.6,2043.4,0.0011]
[1772117566818,1.22373305,2044.6,2043.4,0.0011]
[1772117567219,2.66473305,2044.6,2043.5,0.96507358]
[1772117568086,0.001,2044.6,2043.6,0.96507358]
[1772117568289,0.001,2044.9,2043.6,0.96507358]
[1772117568290,0.001,2044.9,2044.0,2.18816555]
[1772117568624,0.001,2044.9,2044.1,3.48765568]
[1772117568793,0.001,2044.9,2044.2,0.96507358]
[1772117569190,0.001,2044.9,2044.1,2.5225821]
[1772117569191,0.001,2044.9,2044.3,0.96507358]
[1772117569390,0.001,2044.9,2044.1,2.5225821]
[1772117569586,0.001,2044.9,2044.0,1.22309197]
[1772117569819,0.001,2044.9,2043.9,2.18819733]
[1772117570210,0.001,2044.9,2044.0,0.96507358]
[1772117570409,0.001,2044.9,2044.1,1.22303214]
[1772117571123,0.001,2044.9,2044.2,0.96507358]
[1772117571702,0.001,2044.9,2043.9,4.89244516]
[1772117572111,0.001,2044.9,2043.8,2.1882675]
[1772117572418,0.001,2044.9,2043.7,1.2232433]
[1772117572816,0.001,2044.9,2043.8,0.96507358]
[1772117572817,1.438,2044.8,2043.8,0.96507358]
[1772117573320,0.001,2044.9,2043.8,0.96507358]
[1772117573516,1.437,2044.8,2043.8,0.96507358]
[1772117573829,1.437,2044.7,2043.8,0.96507358]
[1772117574236,1.437,2044.7,2043.5,1.22335892]
[1772117574446,3.72670149,2044.6,2043.4,0.0011]
[1772117574945,0.99423871,2044.5,2043.4,0.0011]
[1772117575304,1.437,2044.4,2043.4,1.2245464]
[1772117575504,1.437,2044.4,2043.4,0.0011]
[1772117576123,0.99291248,2044.3,2043.4,0.0011]
[1772117576533,1.22297231,2044.2,2043.4,0.0011]
[1772117577033,1.436,2044.1,2043.4,0.0011]
[1772117578427,7.39349635,2044.7,2043.4,0.0011]
[1772117578644,2.65873305,2044.6,2043.4,0.0011]
[1772117578847,2.65873305,2044.6,2043.6,0.0011]
[1772117579317,4.16883365,2044.6,2043.6,0.0011]
[1772117579647,1.435,2044.5,2043.6,0.0011]
[1772117579936,1.5101006,2044.3,2043.6,0.0011]
[1772117580125,1.435,2044.5,2043.6,0.0011]
[1772117580434,2.9451006,2044.5,2043.6,0.0011]
[1772117580824,0.001,2044.7,2043.6,0.97588013]
[1772117581036,0.001,2044.9,2044.0,0.97478013]
[1772117581234,0.001,2044.9,2043.9,1.5101006]
[1772117581235,0.001,2044.9,2044.1,2.55903479]
[1772117581605,1.22358727,2044.9,2044.1,2.55903479]
[1772117582330,0.001,2044.9,2044.1,2.55903479]
[1772117582536,0.001,2044.9,2044.2,0.97478013]
[1772117582704,1.22356543,2044.9,2044.2,0.97478013]
[1772117582908,0.001,2044.9,2044.2,1.22297231]
[1772117583105,0.001,2044.9,2043.9,1.22310243]
[1772117583301,0.001,2044.9,2043.7,0.97478013]
[1772117583730,0.001,2044.9,2043.6,1.22442455]
[1772117583933,0.99291248,2044.7,2043.6,0.0011]
[1772117584110,1.50890804,2044.5,2043.6,0.0011]
[1772117584434,6.66690804,2044.8,2043.6,0.0011]
[1772117584435,2.50182052,2044.2,2043.6,0.0011]
[1772117584635,2.50182052,2044.2,2043.2,0.0011]
[1772117584935,1.22309197,2044.0,2043.2,0.0011]
[1772117585106,1.433,2043.9,2043.2,0.0011]
[1772117585309,2.65585267,2044.4,2043.2,0.97588013]
[1772117586114,1.22261345,2044.8,2043.2,0.97588013]
[1772117586315,1.22355424,2044.9,2043.7,0.97478013]
[1772117586915,0.001,2044.9,2043.8,2.19799179]
[1772117587126,0.001,2044.9,2043.9,0.97478013]
[1772117587933,1.433,2045.1,2044.0,0.97478013]
[1772117588242,1.22321455,2045.5,2044.3,0.97478013]
[1772117588413,0.001,2045.5,2044.4,0.97478013]
[1772117588614,2.50182052,2046.6,2044.6,0.97478013]
[1772117588823,4.88639867,2046.5,2044.8,0.97478013]
[1772117589039,4.88639867,2046.5,2044.9,1.22255367]
[1772117589040,0.99291248,2046.4,2044.9,1.22255367]
[1772117589215,0.99291248,2046.2,2044.8,1.22258612]
[1772117589534,0.99291248,2045.9,2044.5,1.22279285]
[1772117591010,0.001,2044.7,2044.5,1.22279285]
[1772117591211,1.43,2045.4,2044.3,1.22288229]
[1772117591432,1.43,2045.4,2044.3,2.19766242]
[1772117591626,1.43,2045.4,2044.4,0.97478013]
[1772117592237,1.22201583,2045.8,2044.4,0.97478013]
[1772117592446,1.22201583,2045.8,2044.5,0.97478013]
[1772117592747,2.21492831,2045.8,2044.3,1.22288229]
[1772117592940,2.21492831,2045.8,2044.3,2.19766242]
[1772117593110,1.22201583,2045.8,2044.4,0.97478013]
[1772117593309,1.22201583,2045.8,2044.3,1.22288229]
[1772117593310,1.22183666,2046.1,2044.6,0.97478013]
[1772117593534,2.21474914,2046.1,2044.6,0.97478013]
[1772117593746,2.50182052,2046.0,2044.3,2.19766242]
[1772117594124,2.50182052,2046.0,2044.4,0.97478013]
[1772117594333,0.99291248,2045.9,2044.4,0.97478013]
[1772117594643,0.99291248,2045.6,2044.3,1.22288229]
[1772117594838,1.429,2045.5,2044.3,2.19766242]
[1772117595154,1.428,2045.7,2044.5,1.22279285]
[1772117595520,2.42091248,2045.7,2044.5,1.22279285]
[1772117595940,2.42091248,2045.7,2044.2,1.104705]
[1772117596139,0.99291248,2045.6,2044.2,1.104705]
[1772117596439,0.99291248,2045.3,2044.2,2.32766453]
[1772117597140,1.22213531,2045.6,2044.2,2.32766453]
[1772117597710,1.22213531,2045.6,2044.3,0.97478013]
[1772117598108,1.22213531,2045.6,2044.4,0.97478013]
[1772117599250,1.22213531,2045.6,2044.5,1.22279285]
[1772117599459,0.99291248,2045.4,2044.2,2.32767437]
[1772117600527,1.22213531,2045.6,2044.2,2.32767437]
[1772117600721,2.21504779,2045.6,2044.2,3.3024545]
[1772117600928,1.50890804,2045.4,2044.2,2.32767437]
[1772117601231,1.22249388,2045.0,2044.2,1.104705]
[1772117601533,1.50940408,2044.8,2044.2,0.95417516]
[1772117602359,1.50940408,2044.5,2043.6,0.0011]
[1772117602527,1.50940408,2044.3,2043.6,0.0011]
[1772117602725,1.50940408,2044.3,2043.4,0.0011]
[1772117602726,1.50940408,2044.0,2043.4,0.0011]
[1772117603030,1.427,2043.9,2043.4,0.0011]
[1772117603235,1.427,2043.9,2043.1,0.0011]
[1772117603236,1.22327151,2043.7,2043.1,0.0011]
[1772117603639,1.22327151,2043.7,2042.9,0.0011]
[1772117603640,1.50940408,2043.5,2042.9,0.0011]
[1772117604032,2.50231656,2043.6,2042.9,0.0011]
[1772117604357,1.22327151,2043.7,2042.9,0.0011]
[1772117604574,1.427,2043.5,2042.9,0.0011]
[1772117604935,6.31928193,2044.1,2042.9,1.51050408]
[1772117605140,6.31928193,2044.1,2042.9,2.48528421]
[1772117605464,6.31928193,2044.1,2043.0,1.22369065]
[1772117605875,2.65003214,2044.1,2043.1,0.97478013]
[1772117606080,1.427,2044.1,2043.1,0.97478013]
[1772117606250,2.65003958,2044.1,2043.1,0.97478013]
[1772117606452,1.427,2044.1,2042.9,0.0011]
[1772117606660,2.47314871,2044.0,2042.9,0.0011]
[1772117606858,2.47314871,2044.0,2042.9,1.22484917]
[1772117606859,0.96272279,2044.0,2042.9,1.22484917]
[1772117607046,2.65005493,2044.1,2042.9,1.22484917]
[1772117607245,2.65005493,2044.1,2042.9,0.0011]
[1772117607671,2.65005493,2044.1,2042.9,0.97052243]
[1772117608545,2.65004955,2044.1,2042.9,0.97052243]
[1772117608978,3.9998525,2044.6,2042.9,0.97052243]
[1772117609149,1.22279285,2044.5,2043.1,0.96942243]
[1772117609455,1.22279285,2044.5,2043.3,0.96942243]
[1772117609655,1.22279285,2044.5,2043.4,1.078]
[1772117610058,1.427,2045.1,2043.5,0.96942243]
[1772117611451,1.427,2045.1,2043.9,0.96942243]
[1772117611667,1.427,2045.1,2044.0,1.078]
[1772117611874,1.427,2045.1,2044.1,0.96942243]
[1772117612179,0.001,2045.4,2044.2,0.96942243]
[1772117612349,0.001,2045.4,2044.3,0.96942243]
[1772117612550,1.22198693,2045.9,2044.2,1.51042592]
[1772117612877,2.64790663,2046.0,2044.7,0.96942243]
[1772117613079,1.22190663,2046.0,2044.8,1.077]
[1772117613581,2.18462942,2046.0,2044.8,2.29958276]
[1772117613880,0.96272279,2045.9,2044.8,1.077]
[1772117614183,0.96272279,2045.9,2044.2,1.22292645]
[1772117614184,2.47314871,2045.5,2044.2,1.22292645]
[1772117614471,0.96272279,2045.3,2044.0,4.89227986]
[1772117614677,2.47314871,2045.3,2044.0,4.89227986]
[1772117615349,2.47314871,2045.3,2044.6,0.0011]
[1772117615557,0.96272279,2045.1,2044.6,0.0011]
[1772117616254,0.96272279,2044.9,2044.1,0.0011]
[1772117616579,2.38772279,2044.8,2044.1,0.0011]
[1772117617122,1.51042592,2045.0,2044.1,0.0011]
[1772117617279,1.425,2044.9,2044.1,0.0011]
[1772117617585,2.18509712,2045.2,2044.1,0.0011]
[1772117617586,1.22243411,2045.1,2044.1,0.0011]
[1772117617766,2.64743411,2045.1,2044.1,0.0011]
[1772117618675,1.22243411,2045.1,2044.1,0.0011]
[1772117619549,4.88973644,2045.2,2044.1,0.0011]
[1772117620780,4.88973644,2045.2,2044.1,1.00131397]
[1772117621382,1.22224059,2045.5,2044.3,1.00021397]
[1772117621780,4.88846736,2045.7,2044.5,1.00021397]
[1772117621960,1.22304608,2045.8,2044.5,1.00021397]
[1772117623658,1.22301946,2045.8,2044.5,1.00021397]
[1772117623863,1.22301946,2045.8,2044.7,1.00021397]
[1772117624062,0.001,2045.8,2044.7,1.00021397]
[1772117625859,0.001,2045.8,2044.8,1.22261345]
[1772117626058,0.001,2045.8,2044.9,1.00021397]
[1772117626585,2.64666171,2046.4,2044.9,1.00021397]
[1772117626789,4.88540325,2047.1,2044.9,1.00021397]
[1772117626790,1.22147847,2046.7,2044.9,1.00021397]
[1772117627158,1.51042592,2046.4,2044.9,1.00021397]
[1772117627375,1.50768428,2046.2,2044.9,1.00021397]
[1772117628080,1.22183666,2046.1,2045.0,2.22270785]
[1772117628573,1.22183666,2046.1,2045.0,1.22249388]
[1772117628778,1.22183666,2046.1,2044.9,1.22250642]
[1772117628779,1.50768428,2045.9,2044.9,1.22250642]
[1772117628978,1.424,2045.8,2044.9,1.22250642]
[1772117629281,1.22183666,2046.1,2044.9,2.22382039]
[1772117629483,0.001,2045.8,2045.0,1.00021397]
[1772117629969,0.001,2045.8,2045.1,1.22243411]
[1772117631667,1.22183666,2046.1,2045.2,1.00021397]
[1772117631996,4.88593521,2046.7,2045.0,4.88973644]